bitfinex/quotes_ETHUSD_20250602
["timestamp","ask_amount","ask_price","bid_price","bid_amount"]
[1748867743105,0.8275,2489.0,2488.4,4.01864651]
[1748867743408,0.8275,2489.0,2488.6,4.01831529]
[1748867744362,0.8275,2489.0,2488.5,4.0585699]
[1748867745042,0.8275,2489.0,2488.3,4.01869517]
[1748867745246,0.8275,2489.0,2488.4,4.0185689]
[1748867746151,0.8275,2489.0,2488.5,4.01847992]
[1748867746321,0.8275,2489.0,2488.5,4.86640301]
[1748867748247,0.8275,2489.0,2488.5,0.84792309]
[1748867748550,0.8275,2489.0,2488.5,4.86637706]
[1748867749248,0.8275,2489.0,2488.5,0.80774231]
[1748867749451,0.8275,2489.0,2488.5,0.04018071]
[1748867749939,0.8275,2489.0,2488.5,4.05865373]
[1748867750162,0.20935998,2489.7,2488.5,4.05865373]
[1748867750163,0.8169,2489.4,2488.5,4.0585895]
[1748867750343,0.8169,2489.4,2488.9,4.01782977]
[1748867750651,0.8169,2489.4,2488.9,4.82133719]
[1748867750852,0.8169,2489.4,2488.9,0.80359041]
[1748867751152,0.8169,2489.4,2488.8,4.01792484]
[1748867751153,0.8169,2489.4,2489.0,0.04017228]
[1748867752855,0.8169,2489.4,2488.9,4.01781776]
[1748867753383,0.8169,2489.4,2489.0,0.04017222]
[1748867754267,0.20932336,2490.2,2489.0,0.04017222]
[1748867754439,0.8169,2490.1,2489.1,4.01751637]
[1748867755082,0.8169,2490.1,2489.2,4.05751743]
[1748867755641,0.8169,2490.1,2489.3,4.01706269]
[1748867755842,0.8169,2490.1,2489.4,4.01701899]
[1748867756082,0.8169,2490.1,2489.3,4.0171404]
[1748867756245,0.8169,2490.1,2489.6,4.01661979]
[1748867757291,0.8169,2490.1,2489.7,4.01651683]
[1748867757482,0.8169,2490.1,2489.6,4.01660693]
[1748867757792,0.8169,2490.1,2489.8,4.01635464]
[1748867758000,0.8047,2490.4,2489.8,4.01638102]
[1748867758165,0.8047,2490.4,2489.7,4.05663317]
[1748867758512,0.8047,2490.4,2489.8,4.01637996]
[1748867759282,0.8047,2490.4,2489.7,4.05664081]
[1748867759603,0.8047,2490.4,2489.7,4.86397064]
[1748867759906,0.8047,2490.4,2489.7,0.84749029]
[1748867760066,0.8047,2490.4,2489.7,0.80732983]
[1748867760608,0.8047,2490.4,2489.4,0.4002]
[1748867760778,0.8047,2490.4,2489.2,4.01732563]
[1748867760981,0.8047,2490.4,2489.4,4.01703029]
[1748867761710,0.7938,2490.1,2488.9,0.4002]
[1748867761868,0.7938,2489.9,2488.7,0.4002]
[1748867762067,0.7938,2489.8,2488.4,5.05413389]
[1748867762271,0.7938,2489.6,2488.5,4.01847824]
[1748867762702,0.7938,2489.6,2488.4,0.4002]
[1748867762897,0.7938,2489.6,2488.6,0.04017858]
[1748867763208,0.7938,2489.6,2488.5,4.01839298]
[1748867763397,0.7938,2489.6,2488.5,4.05857236]
[1748867763776,0.7938,2489.6,2488.5,4.01839298]
[1748867764472,0.7938,2489.6,2488.5,4.05857233]
[1748867765601,0.7938,2489.6,2488.5,4.01839298]
[1748867765800,0.7938,2489.6,2488.5,4.05857229]
[1748867766475,0.7938,2489.6,2488.6,4.01828692]
[1748867767249,0.7938,2489.6,2488.4,4.41879432]
[1748867767431,0.7938,2489.6,2488.1,1.04557832]
[1748867767432,0.7538,2489.4,2488.1,1.04557832]
[1748867767578,0.7538,2489.4,2488.1,4.42925577]
[1748867767930,0.7538,2489.4,2488.2,0.04018379]
[1748867768127,0.7538,2489.4,2488.3,4.01871089]
[1748867768831,0.7777,2489.4,2488.3,4.01871089]
[1748867769043,0.7777,2489.4,2488.2,4.01888975]
[1748867769191,0.7777,2489.4,2488.2,4.05907303]
[1748867769391,0.7777,2489.4,2488.3,4.01878167]
[1748867769898,0.7777,2489.4,2488.2,0.04018328]
[1748867769899,0.7777,2489.4,2488.2,4.05907516]
[1748867770133,0.7777,2489.4,2488.3,4.01879663]
[1748867770427,0.7777,2489.4,2488.2,4.05908655]
[1748867770629,0.7777,2489.4,2488.3,4.0188025]
[1748867771519,0.7777,2489.4,2488.5,4.01847174]
[1748867771735,0.7777,2489.4,2488.4,4.01852592]
[1748867772228,0.7777,2489.4,2488.5,4.01847948]
[1748867773596,0.7777,2489.4,2488.6,4.01828415]
[1748867773905,0.7777,2489.4,2488.6,4.01831387]
[1748867774103,0.7777,2489.4,2488.6,4.82602171]
[1748867774307,0.7777,2489.4,2488.6,0.80770784]
[1748867774631,0.7777,2489.4,2488.6,4.82600829]
[1748867775525,0.7777,2489.4,2488.6,0.80770784]
[1748867775735,0.7777,2489.4,2488.5,4.05857033]
[1748867776098,0.7777,2489.4,2488.6,4.01832227]
[1748867776736,0.7777,2489.4,2488.6,4.01823671]
[1748867777447,0.7777,2489.4,2488.9,4.01781725]
[1748867777597,0.7777,2489.4,2488.9,4.05799232]
[1748867777930,0.7777,2489.4,2488.9,0.40579923]
[1748867778118,0.7777,2489.4,2489.0,4.01758064]
[1748867778320,0.7777,2489.4,2489.0,4.01752207]
[1748867778508,0.7777,2489.4,2489.0,4.01751752]
[1748867778706,0.7777,2489.4,2488.9,4.42355338]
[1748867779026,0.7777,2489.4,2488.5,4.41861417]
[1748867779337,0.7777,2489.4,2488.7,4.0181452]
[1748867779635,0.7777,2489.4,2488.6,8.0]
[1748867779852,0.7777,2489.4,2488.7,4.01807883]
[1748867780015,0.7777,2489.4,2488.6,8.0]
[1748867780336,0.7777,2489.4,2488.9,8.0]
[1748867781239,0.7777,2489.4,2489.0,8.0]
[1748867781538,0.7777,2489.4,2488.9,8.0]
[1748867781741,0.7777,2489.4,2488.9,9.68802616]
[1748867781899,0.7777,2489.4,2488.9,1.68802616]
[1748867782097,0.7777,2489.4,2488.9,13.70585763]
[1748867782340,0.7777,2489.4,2488.9,1.68802616]
[1748867782715,0.7777,2489.4,2488.9,9.68802616]
[1748867783306,0.7777,2489.4,2488.9,1.68802616]
[1748867783502,0.7777,2489.4,2488.7,12.01809597]
[1748867783720,0.7777,2489.4,2488.7,12.01811028]
[1748867784006,0.7777,2489.4,2488.9,12.01782797]
[1748867784202,0.7777,2489.4,2488.7,4.0181595]
[1748867784452,0.7777,2489.4,2488.5,12.01848503]
[1748867784642,0.7777,2489.4,2488.4,4.01864651]
[1748867784947,0.7777,2489.4,2488.5,4.01845863]
[1748867785440,0.7786,2489.3,2488.5,4.01845863]
[1748867785806,0.7786,2489.3,2488.4,1.4037977]
[1748867786007,0.7786,2489.3,2488.3,12.01871203]
[1748867786247,0.7786,2489.3,2488.4,12.01863936]
[1748867787247,0.7786,2489.3,2488.5,4.01846916]
[1748867787949,0.7786,2489.3,2488.4,12.01856973]
[1748867788154,0.7786,2489.3,2488.4,8.0]
[1748867788450,0.7786,2489.3,2488.5,4.01846784]
[1748867788831,0.7728,2489.2,2488.5,4.01846784]
[1748867789030,0.7728,2489.2,2488.4,4.01854809]
[1748867789454,0.7728,2489.2,2488.4,5.62227386]
[1748867790045,0.7728,2489.2,2488.5,4.01848277]
[1748867790538,0.7728,2489.2,2488.4,5.62228295]
[1748867790934,0.7728,2489.2,2488.5,4.01846763]
[1748867791347,0.7728,2489.2,2488.6,4.05848568]
[1748867791523,0.7728,2489.2,2488.6,4.62470683]
[1748867791855,0.7728,2489.2,2488.6,0.60640407]
[1748867792055,0.7728,2489.2,2488.6,0.04018292]
[1748867792258,0.7728,2489.2,2488.4,4.01854958]
[1748867792419,0.7728,2489.2,2488.1,8.4102]
[1748867792420,0.7728,2489.2,2488.6,4.01822756]
[1748867793256,0.7728,2489.2,2488.6,0.04017998]
[1748867793458,0.7728,2489.2,2488.9,4.01774719]
[1748867793818,0.7728,2489.2,2488.9,4.01771861]
[1748867794216,0.7728,2489.2,2489.0,4.01767242]
[1748867794959,0.7728,2489.2,2488.9,4.01776702]
[1748867795474,0.7728,2489.2,2488.7,4.0181064]
[1748867795659,0.7728,2489.2,2488.9,4.01777293]
[1748867796335,0.7728,2489.2,2488.8,1.30993631]
[1748867796542,0.7728,2489.2,2488.6,5.09949572]
[1748867796742,0.7728,2489.2,2488.6,4.4641174]
[1748867796942,0.71214364,2489.2,2488.6,4.4641174]
[1748867799609,0.71214364,2489.2,2488.6,0.44587838]
[1748867800097,0.71214364,2489.2,2488.4,8.63537832]
[1748867800397,0.71214364,2489.2,2488.4,4.65402331]
[1748867800691,0.71214364,2489.2,2488.4,4.0186428]
[1748867801955,0.71214364,2489.2,2488.6,4.01822237]
[1748867802151,0.71214364,2489.2,2488.7,4.01813928]
[1748867802452,0.71214364,2489.2,2488.8,0.40181393]
[1748867802885,0.71214364,2489.2,2488.6,4.01824979]
[1748867803087,0.71214364,2489.2,2488.5,4.01841544]
[1748867803304,0.71214364,2489.2,2488.4,4.65393152]
[1748867803955,0.71214364,2489.2,2488.5,4.01848472]
[1748867804156,0.71214364,2489.2,2488.3,4.65405373]
[1748867804377,0.71214364,2489.2,2488.4,4.88587404]
[1748867804697,0.71214364,2489.2,2488.4,0.86730157]
[1748867805000,0.71214364,2489.2,2488.4,4.88591353]
[1748867805206,0.71214364,2489.2,2488.3,0.63537832]
[1748867805408,4.01757978,2489.1,2488.1,0.64537832]
[1748867805566,0.8129,2488.8,2488.1,0.01]
[1748867808258,0.8129,2488.8,2488.2,0.04018878]
[1748867808775,0.8129,2488.8,2488.2,0.44712045]
[1748867809575,0.8129,2488.8,2488.3,4.01864835]
[1748867809773,0.8129,2488.8,2488.3,4.05883098]
[1748867809982,0.8129,2488.8,2488.3,0.04018263]
[1748867811803,0.8129,2488.8,2488.2,4.01885855]
[1748867811962,0.8129,2488.8,2488.3,0.0401826]
[1748867812294,0.8129,2488.8,2488.3,0.84899961]
[1748867812497,0.8129,2488.8,2488.4,4.01862083]
[1748867813757,0.8129,2488.8,2488.3,4.82754243]
[1748867814099,0.8129,2488.8,2488.4,4.01861816]
[1748867814492,0.8129,2488.8,2488.3,4.82755974]
[1748867814667,0.8129,2488.8,2488.4,4.9032921]
[1748867815003,0.8129,2488.8,2488.4,4.90322717]
[1748867816319,0.8129,2488.8,2488.6,4.01825506]
[1748867816603,0.801,2489.9,2488.9,4.01770195]
[1748867816902,0.801,2490.0,2488.8,4.01788402]
[1748867817398,0.801,2490.0,2488.9,4.01782986]
[1748867817803,0.801,2490.0,2488.8,4.01789055]
[1748867817968,0.801,2490.0,2488.9,4.01773922]
[1748867818604,0.801,2490.0,2488.9,4.01782884]
[1748867818900,0.8801,2489.9,2489.0,0.40178288]
[1748867819100,0.8271,2489.8,2489.0,0.40178288]
[1748867820863,0.8271,2489.8,2488.5,5.11473833]
[1748867821106,0.8271,2489.8,2488.6,12.01825687]
[1748867821404,0.8271,2489.8,2488.6,4.01825687]
[1748867821606,0.8271,2489.8,2488.7,4.01808991]
[1748867822214,0.8271,2489.8,2488.8,4.017939]
[1748867822503,0.8,2489.6,2488.8,0.4017939]
[1748867822704,0.8,2489.6,2488.8,4.41969563]
[1748867825426,0.8,2489.6,2488.8,4.41977668]
[1748867825906,0.8,2489.6,2488.9,4.01783257]
[1748867826121,0.8,2489.6,2488.9,4.01782629]
[1748867826306,0.8,2489.6,2488.9,4.86159683]
[1748867826774,0.8,2489.6,2488.9,0.84377054]
[1748867826974,0.8,2489.6,2488.9,4.861607]
[1748867827398,0.8,2489.6,2488.9,0.84377054]
[1748867827710,0.8,2489.6,2488.9,4.01777105]
[1748867827917,0.8,2489.6,2489.1,4.01740546]
[1748867828487,0.8,2489.6,2489.1,4.05757621]
[1748867828715,0.8,2489.6,2489.1,4.01740546]
[1748867829238,0.8,2489.6,2489.4,4.01695077]
[1748867829376,0.772,2490.6,2489.6,4.01664111]
[1748867829571,0.772,2490.6,2489.7,4.01654721]
[1748867830000,0.772,2490.6,2489.6,4.01661523]
[1748867830208,0.772,2490.6,2489.5,4.0569789]
[1748867830505,0.772,2490.6,2489.6,4.01670836]
[1748867830675,0.772,2490.6,2489.7,4.01653386]
[1748867831597,0.772,2490.6,2489.8,4.01638685]
[1748867831834,0.772,2490.6,2489.9,4.05633131]
[1748867831983,0.772,2490.6,2490.0,4.01606425]
[1748867832287,0.772,2490.6,2490.1,0.04015592]
[1748867832482,0.772,2490.6,2490.1,4.05600657]
[1748867832729,0.772,2490.6,2490.2,4.01565694]
[1748867832907,0.772,2490.6,2490.3,0.04015137]
[1748867833088,0.772,2490.6,2490.3,4.0556683]
[1748867833283,0.772,2490.6,2490.2,4.01559446]
[1748867833488,0.772,2490.6,2490.3,4.01555358]
[1748867833705,0.772,2490.6,2490.4,0.40155536]
[1748867833909,0.772,2490.6,2490.4,4.4169424]
[1748867834085,0.772,2490.6,2490.4,0.40155536]
[1748867834423,0.772,2490.6,2490.4,4.41690539]
[1748867834617,0.772,2490.6,2490.4,0.40155536]
[1748867834918,0.772,2490.6,2490.5,0.44170529]
[1748867835122,1.242,2490.9,2490.5,0.481855]
[1748867835325,1.242,2490.9,2490.5,0.04014971]
[1748867835617,1.242,2490.9,2490.3,4.01555551]
[1748867836823,1.242,2490.9,2490.3,4.01550783]
[1748867837819,0.811,2490.8,2490.3,4.01550783]
[1748867838123,0.811,2490.8,2490.3,4.01545257]
[1748867838334,0.811,2490.8,2490.4,4.85859274]
[1748867838713,0.811,2490.8,2490.5,4.01525636]
[1748867838920,0.811,2490.8,2490.4,4.81845131]
[1748867839118,0.811,2490.8,2490.4,4.85859937]
[1748867839304,0.811,2490.8,2490.4,0.84326713]
[1748867839507,0.811,2490.8,2490.4,0.80311907]
[1748867840831,0.811,2490.8,2490.5,0.48186338]
[1748867841025,0.811,2490.8,2490.5,0.52201142]
[1748867842192,0.811,2490.8,2490.5,0.48186338]
[1748867842431,0.811,2490.8,2490.3,4.01547337]
[1748867842609,0.811,2490.8,2490.4,4.05554274]
[1748867843060,0.811,2490.8,2490.3,4.01549931]
[1748867843398,0.811,2490.8,2490.2,4.01567377]
[1748867843595,0.811,2490.8,2490.2,4.01566145]
[1748867843919,0.8245,2490.7,2490.0,4.01603794]
[1748867844845,0.8245,2490.7,2489.9,4.01615307]
[1748867845007,0.8245,2490.7,2489.8,4.01631778]
[1748867845202,0.8245,2490.7,2489.7,0.4609]
[1748867845467,0.8245,2490.7,2489.5,0.4609]
[1748867845752,0.8309,2490.6,2489.6,0.04016076]
[1748867845966,0.8309,2490.6,2489.5,4.01683285]
[1748867846107,0.8309,2490.5,2489.4,4.0169849]
[1748867846307,0.8309,2490.5,2489.4,4.82040705]
[1748867846511,0.8309,2490.5,2489.4,0.80342215]
[1748867846754,0.8309,2490.5,2489.3,4.01719337]
[1748867847338,0.8309,2490.5,2489.3,4.0171233]
[1748867848153,0.7891,2490.1,2488.8,4.01800064]
[1748867848451,0.7891,2490.1,2489.0,4.01766898]
[1748867848869,0.7891,2490.1,2489.1,0.04017002]
[1748867849013,0.7891,2490.1,2489.2,4.01728583]
[1748867849217,0.7891,2490.1,2489.3,0.04016775]
[1748867849454,0.7891,2490.1,2489.3,4.05727934]
[1748867850215,0.7891,2490.1,2489.3,0.04016775]
[1748867850515,0.7891,2490.1,2489.3,0.0401653]
[1748867850715,0.7891,2490.1,2489.6,4.01661811]
[1748867850919,0.7891,2490.1,2489.7,0.40166181]
[1748867851434,0.7891,2490.1,2489.7,4.41818851]
[1748867851762,0.7891,2490.1,2489.7,0.40166181]
[1748867851957,0.7891,2490.1,2489.7,4.41810142]
[1748867852161,0.7891,2490.1,2489.8,0.04016085]
[1748867852360,0.7891,2490.1,2489.8,0.48600518]
[1748867853860,0.7891,2490.1,2489.8,0.04016085]
[1748867854376,0.7885,2490.4,2489.7,0.40166181]
[1748867854556,0.7885,2490.4,2489.7,4.0164823]
[1748867854866,0.7885,2490.4,2489.9,8.0]
[1748867855285,0.7885,2490.4,2490.0,4.05619707]
[1748867855939,0.7885,2490.4,2490.1,4.01588966]
[1748867856139,0.7885,2490.4,2490.1,0.80721548]
[1748867856342,0.7885,2490.4,2490.1,4.82309328]
[1748867856684,0.7885,2490.4,2490.1,4.82310918]
[1748867857492,0.7885,2490.4,2490.1,4.82304239]
[1748867857785,0.7885,2490.4,2490.2,4.01565891]
[1748867857954,0.7885,2490.4,2490.3,0.48228744]
[1748867858280,0.7711,2490.6,2490.3,4.49786789]
[1748867858479,0.7711,2490.6,2490.4,4.0555262]
[1748867858640,0.7711,2490.6,2490.4,4.01537695]
[1748867858840,0.7711,2490.6,2490.5,0.44976644]
[1748867859859,2.0223,2490.9,2490.5,0.44976644]
[1748867860485,2.0223,2490.9,2490.6,4.05512152]
[1748867861387,1.242,2490.9,2490.7,4.01478613]
[1748867861565,1.242,2490.9,2490.7,4.86675868]
[1748867862103,1.242,2490.9,2490.7,0.85197255]
[1748867862276,1.242,2490.9,2490.7,4.01481715]
[1748867862451,1.242,2490.9,2490.8,0.04014284]
[1748867862773,1.242,2490.9,2490.6,4.01500246]
[1748867863172,1.242,2490.9,2490.8,4.01477436]
[1748867863345,1.242,2490.9,2490.8,4.05491544]
[1748867863545,1.242,2490.9,2490.8,4.90797538]
[1748867864292,1.242,2490.9,2490.8,5.91887538]
[1748867865090,0.7759,2491.9,2491.8,4.47406317]
[1748867865091,0.01,2491.9,2491.8,4.47406317]
[1748867866093,0.01,2491.9,2491.8,5.02406317]
[1748867866310,0.01,2491.9,2491.8,13.02406317]
[1748867866589,0.01,2491.9,2491.8,14.10897859]
[1748867867878,0.01,2491.9,2491.8,13.55897859]
[1748867868598,0.01,2491.9,2491.8,14.10897859]
[1748867869914,0.01,2492.9,2492.6,4.01179193]
[1748867870080,0.01,2492.9,2492.7,0.40117919]
[1748867870277,0.01,2492.9,2492.8,12.47245327]
[1748867871014,0.01,2492.9,2492.8,13.02245327]
[1748867872517,0.01,2492.9,2492.8,5.02245327]
[1748867872722,0.01,2492.9,2492.8,4.01155327]
[1748867872887,0.01,2492.9,2492.8,5.29718857]
[1748867873711,0.01,2492.9,2492.8,4.85399766]
[1748867874798,0.01,2492.9,2492.8,0.84244439]
[1748867874999,0.01,2492.9,2492.5,4.01195968]
[1748867875176,0.01,2492.9,2492.4,4.01208868]
[1748867875377,0.01,2492.9,2492.3,4.01227236]
[1748867875605,0.01,2492.9,2492.4,4.01219643]
[1748867875788,0.01,2492.9,2492.5,0.40121964]
[1748867875987,0.01,2492.9,2492.6,4.01177623]
[1748867876723,0.01,2492.9,2492.6,4.05188657]
[1748867876924,0.01,2492.9,2492.7,4.01166264]
[1748867877515,0.01,2492.9,2492.8,0.04011034]
[1748867878025,0.01,2492.9,2492.8,4.05166361]
[1748867878212,0.01,2492.9,2492.8,0.80632346]
[1748867878418,0.01,2492.9,2492.8,4.01155327]
[1748867879124,0.01,2492.9,2492.8,4.05166034]
[1748867880540,0.01,2492.9,2492.8,9.81256034]
[1748867880724,0.01,2492.9,2492.8,9.77245327]
[1748867881930,0.01,2492.9,2492.8,17.77245327]
[1748867882131,0.01,2493.9,2493.7,4.01000795]
[1748867882429,0.01,2493.9,2493.8,4.00994466]
[1748867882731,0.01,2493.9,2493.8,4.05003501]
[1748867883231,0.01,2493.9,2493.8,4.60003501]
[1748867883435,0.01,2493.9,2493.8,13.46423972]
[1748867883634,0.01,2493.9,2493.8,15.70274601]
[1748867883932,0.01,2493.9,2493.8,6.50906479]
[1748867884132,0.01,2493.9,2493.8,5.49816479]
[1748867884629,0.01,2493.9,2493.8,5.09486008]
[1748867884831,0.01,2493.9,2493.8,1.08491542]
[1748867885130,0.01,2493.9,2493.4,4.01053663]
[1748867885331,0.01,2493.9,2493.8,0.7]
[1748867885548,0.01,2493.9,2493.8,0.74009206]
[1748867885692,0.01,2493.9,2493.7,4.01003678]
[1748867885899,0.01,2493.9,2493.8,0.04009209]
[1748867886207,0.01,2493.9,2493.7,0.8020195]
[1748867886522,0.8232,2493.8,2493.4,4.01055511]
[1748867886728,0.8232,2493.8,2493.4,4.010517]
[1748867887031,0.8232,2493.8,2493.3,4.01069242]
[1748867887253,0.8232,2493.8,2493.4,0.8021548]
[1748867887396,0.8232,2493.8,2493.3,4.01065857]
[1748867887598,0.8232,2493.8,2493.3,4.01067475]
[1748867888154,0.8232,2493.8,2493.4,4.01056631]
[1748867888311,0.8232,2493.8,2493.2,4.01088206]
[1748867888503,0.8232,2493.8,2493.3,4.01073659]
[1748867888704,0.8232,2493.8,2493.3,0.80217367]
[1748867889019,0.8232,2493.8,2493.3,0.04009962]
[1748867889217,0.8232,2493.8,2493.3,4.05082713]
[1748867889418,0.8232,2493.8,2493.3,0.04009962]
[1748867889621,0.8232,2493.8,2493.4,4.01058372]
[1748867889795,0.8232,2493.8,2493.5,0.44115657]
[1748867889995,0.8232,2493.8,2493.5,0.0400982]
[1748867890436,0.8232,2493.8,2493.7,0.7]
[1748867891640,0.8232,2493.8,2493.3,4.01072245]
[1748867892043,0.8232,2493.8,2493.4,4.01044679]
[1748867892231,0.8232,2493.8,2493.4,0.40104468]
[1748867892545,0.8232,2493.8,2493.3,0.04009816]
[1748867893327,0.8232,2493.8,2493.4,4.01051232]
[1748867893538,0.8232,2493.8,2493.5,0.04009694]
[1748867893705,0.8232,2493.8,2493.1,4.56100346]
[1748867893902,0.8232,2493.8,2493.2,4.01083974]
[1748867894102,0.8232,2493.8,2493.1,4.05116346]
[1748867894320,0.8232,2493.8,2493.1,0.04009826]
[1748867894709,0.8232,2493.8,2493.0,0.63171429]
[1748867894904,0.8232,2493.8,2492.9,0.63171429]
[1748867895142,0.8232,2493.8,2492.8,4.64325782]
[1748867895357,0.8232,2493.8,2492.8,0.63171429]
[1748867895547,0.8232,2493.8,2492.7,1.33171429]
[1748867895764,0.8232,2493.8,2492.8,0.04010989]
[1748867896200,0.88332,2493.7,2492.8,0.04010989]
[1748867896400,0.8002,2493.8,2492.8,0.04010989]
[1748867896744,0.8002,2493.8,2492.8,4.05166015]
[1748867897156,0.8002,2493.8,2492.8,0.04010989]
[1748867897308,0.8002,2493.8,2492.9,4.01129689]
[1748867897617,0.8002,2493.8,2493.0,0.04010618]
[1748867897820,0.8002,2493.8,2493.0,4.05131985]
[1748867898247,0.8002,2493.8,2493.1,0.40513199]
[1748867898446,0.8002,2493.8,2493.1,4.01098459]
[1748867898750,0.8002,2493.8,2492.9,0.63171429]
[1748867898751,0.8002,2493.8,2493.0,4.01117711]
[1748867898948,0.8002,2493.8,2493.3,0.63171429]
[1748867899147,0.8002,2493.8,2493.4,4.64228286]
[1748867899364,0.8002,2493.8,2493.3,0.63171429]
[1748867899531,0.8002,2493.8,2493.6,4.01013219]
[1748867900247,0.8002,2493.8,2493.7,4.01010546]
[1748867902628,0.8002,2493.8,2493.6,4.01016367]
[1748867902827,0.8002,2493.8,2493.5,0.63171429]
[1748867903054,0.8002,2493.8,2493.4,0.63171429]
[1748867903366,0.8002,2493.8,2493.2,0.63171429]
[1748867903661,0.8002,2493.8,2493.0,0.63171429]
[1748867903825,0.8002,2493.8,2492.9,0.63171429]
[1748867904412,0.8002,2493.8,2492.9,4.64303717]
[1748867904813,0.8002,2493.8,2493.0,4.05124921]
[1748867906165,0.8002,2493.8,2492.9,5.57852595]
[1748867906166,0.8002,2493.8,2492.9,0.63171429]
[1748867906364,0.8002,2493.8,2492.8,0.63171429]
[1748867906657,0.8002,2493.8,2492.7,5.34334693]
[1748867906832,0.8002,2493.8,2492.8,4.01145317]
[1748867907820,0.8002,2493.8,2492.7,1.33171429]
[1748867908184,0.8002,2493.8,2492.9,4.0113154]
[1748867908470,0.8002,2493.8,2493.0,0.04010925]
[1748867908648,0.8002,2493.8,2492.9,4.01130199]
[1748867909656,0.8002,2493.8,2493.0,0.04010732]
[1748867910568,0.8002,2493.8,2493.0,4.05131248]
[1748867910863,0.8002,2493.8,2493.0,0.04010732]
[1748867911560,0.8002,2493.8,2492.9,4.05142794]
[1748867911967,0.8002,2493.8,2492.9,4.05148437]
[1748867912675,0.8002,2493.8,2492.9,4.05143634]
[1748867912881,0.8002,2493.8,2492.9,4.05149277]
[1748867913185,0.8002,2493.8,2492.9,0.04010731]
[1748867913476,0.8002,2493.8,2492.9,4.0514855]
[1748867913676,0.8002,2493.8,2492.9,4.05143559]
[1748867914155,0.8002,2493.8,2492.9,0.04010731]
[1748867914359,0.8002,2493.8,2492.8,4.01147044]
[1748867914583,0.8002,2493.8,2492.8,4.94695149]
[1748867915499,0.8002,2493.8,2492.8,0.93548105]
[1748867915663,8.01,2493.9,2492.7,0.7]
[1748867915862,8.0,2493.5,2492.7,0.7]
[1748867916059,0.8316,2493.3,2492.7,0.7]
[1748867917072,0.7933,2493.2,2492.7,0.7]
[1748867917266,0.7933,2493.2,2492.8,0.04011322]
[1748867917604,0.7933,2493.2,2492.7,0.7]
[1748867918231,0.7933,2493.2,2492.8,0.04011064]
[1748867918410,0.7933,2493.2,2492.7,0.7]
[1748867919408,0.7933,2493.2,2492.8,0.04011064]
[1748867919914,0.7933,2493.2,2492.7,0.7]
[1748867920317,0.7933,2493.2,2492.7,4.71165274]
[1748867920521,0.7933,2493.2,2492.7,0.7]
[1748867921630,0.7933,2493.2,2492.9,4.01139235]
[1748867921780,0.7933,2493.2,2493.0,0.04010732]
[1748867921992,0.7933,2493.2,2493.0,0.04010759]
[1748867924101,0.7933,2493.2,2492.9,0.04010745]
[1748867924436,0.7933,2493.2,2492.9,4.05146505]
[1748867924638,0.7933,2493.2,2492.9,5.0150102]
[1748867925244,0.7933,2493.2,2492.7,1.57239017]
[1748867925443,0.7933,2493.2,2492.7,0.7]
[1748867932066,0.7933,2493.2,2492.8,4.0114461]
[1748867932261,0.7933,2493.2,2492.8,0.04011174]
[1748867932429,0.7933,2493.2,2492.9,4.01139235]
[1748867932630,0.7933,2493.2,2493.0,0.84641064]
[1748867933232,0.7933,2493.2,2492.9,4.01128803]
[1748867933467,0.787,2493.6,2493.3,4.01068135]
[1748867933667,0.787,2493.6,2493.1,4.01100603]
[1748867933853,0.787,2493.6,2493.2,4.05098759]
[1748867934529,0.787,2493.6,2493.2,4.05095545]
[1748867934724,0.787,2493.6,2493.3,4.01073782]
[1748867934924,0.787,2493.6,2493.2,4.85713672]
[1748867935575,0.787,2493.6,2493.3,4.01062516]
[1748867935927,0.8198,2493.8,2493.4,4.0104382]
[1748867936145,0.8198,2493.8,2493.5,0.84621843]
[1748867936346,0.8198,2493.8,2493.5,0.04010189]
[1748867936667,0.8198,2493.8,2493.5,4.05044495]
[1748867936869,0.8198,2493.8,2493.6,4.01021593]
[1748867937232,0.01,2493.9,2493.6,4.01021593]
[1748867937654,0.01,2493.9,2493.5,4.05043445]
[1748867937855,0.01,2493.9,2493.5,0.89228362]
[1748867938057,0.01,2493.9,2493.2,1.43792179]
[1748867938245,0.7852,2493.8,2493.1,4.01097802]
[1748867938444,0.7852,2493.8,2493.3,4.0106373]
[1748867938657,0.7852,2493.8,2493.4,4.05060417]
[1748867940170,0.7852,2493.8,2493.4,0.04009983]
[1748867940395,0.7852,2493.8,2493.2,4.01083595]
[1748867940588,0.7852,2493.8,2493.3,0.40108359]
[1748867940766,0.7852,2493.8,2493.2,4.01083595]
[1748867941075,0.7852,2493.8,2492.8,0.63171429]
[1748867941278,0.7852,2493.8,2492.9,4.05141369]
[1748867941440,0.7852,2493.8,2492.9,0.0401081]
[1748867941796,0.7852,2493.8,2493.3,4.01063734]
[1748867942298,0.7852,2493.8,2493.4,4.01051047]
[1748867942452,0.7852,2493.8,2493.3,4.41173304]
[1748867942784,0.7852,2493.8,2493.3,0.40106373]
[1748867942952,0.7852,2493.8,2493.3,4.41179625]
[1748867944443,0.7852,2493.8,2493.3,0.40106373]
[1748867945143,0.7852,2493.8,2493.1,4.01103614]
[1748867947482,0.7852,2493.8,2493.1,4.01106438]
[1748867948084,0.7852,2493.8,2493.2,0.04010401]
[1748867948648,0.7852,2493.8,2492.8,9.85413557]
[1748867948846,0.7852,2493.8,2493.2,4.01076929]
[1748867949041,0.7852,2493.8,2493.3,0.40107693]
[1748867953381,0.7852,2493.8,2492.9,4.01130279]
[1748867953783,0.7852,2493.8,2492.8,8.76154684]
[1748867953946,0.7852,2493.8,2492.8,4.01154684]
[1748867954147,0.7852,2493.8,2492.9,0.93548944]
[1748867954649,0.7852,2493.8,2492.9,4.94686826]
[1748867954876,0.7852,2493.8,2492.9,0.93548944]
[1748867955390,0.7852,2493.8,2492.8,4.01154348]
[1748867955585,0.7852,2493.8,2492.9,4.01138986]
[1748867955787,0.7852,2493.8,2493.0,4.01116346]
[1748867955954,0.7852,2493.8,2493.1,0.04010494]
[1748867956367,0.7852,2493.8,2493.1,4.05109592]